bitfinex-derivatives/quotes_SOLF0:USTF0_20250929
["timestamp","ask_amount","ask_price","bid_price","bid_amount"]
[1759138244571,8.3896,208.79,208.74,7.74]
[1759138245074,67.0149,208.86,208.75,7.74]
[1759138245075,4.3092,208.81,208.75,7.74]
[1759138245679,5.37164685,208.83,208.75,7.74]
[1759138246266,3.3297645,208.82,208.75,7.74]
[1759138246572,4.3093,208.8,208.75,7.74]
[1759138246773,8.3893,208.8,208.75,7.74]
[1759138247477,8.3893,208.8,208.74,5.60204685]
[1759138247972,8.3893,208.8,208.75,7.74]
[1759138248278,4.3093,208.8,208.74,5.60204685]
[1759138248579,4.08,208.78,208.74,9.03164685]
[1759138248877,4.08,208.78,208.75,7.74]
[1759138249577,8.3898,208.78,208.75,7.74]
[1759138249774,4.08,208.77,208.71,7.74]
[1759138250777,1.29164685,208.77,208.68,13.34334685]
[1759138250982,4.08,208.76,208.68,13.34334685]
[1759138251581,4.3106,208.74,208.68,13.34334685]
[1759138252090,4.3113,208.7,208.67,14.02032898]
[1759138252279,1.29164685,208.73,208.68,7.74]
[1759138252480,4.08,208.72,208.68,7.74]
[1759138253584,8.3909,208.72,208.68,7.74]
[1759138254078,4.06,208.71,208.68,7.74]
[1759138254381,9.66284685,208.71,208.64,7.6]
[1759138254581,9.66284685,208.71,208.64,21.99895738]
[1759138254784,4.06,208.71,208.65,7.6]
[1759138255188,1.29164685,208.73,208.65,7.6]
[1759138255480,1.29164685,208.73,208.65,11.9122]
[1759138255786,9.66244685,208.73,208.65,11.9122]
[1759138257086,9.66244685,208.73,208.66,7.6]
[1759138257782,4.06,208.7,208.65,4.3122]
[1759138258376,4.06,208.7,208.66,7.6]
[1759138259188,4.06,208.7,208.65,4.3122]
[1759138259482,4.06,208.7,208.66,7.6]
[1759138259889,4.06,208.7,208.65,4.3122]
[1759138260395,4.06,208.7,208.66,7.6]
[1759138260592,4.06,208.7,208.65,4.3122]
[1759138260790,4.06,208.7,208.66,7.6]
[1759138261193,4.3111,208.71,208.66,7.6]
[1759138261400,4.06,208.7,208.65,7.6]
[1759138261893,4.06,208.7,208.64,7.6]
[1759138262696,4.06,208.7,208.64,11.9124]
[1759138262993,8.3715,208.7,208.64,11.9124]
[1759138263495,4.3117,208.69,208.64,7.6]
[1759138263793,1.29164685,208.71,208.64,7.6]
[1759138263981,4.06,208.7,208.64,7.6]
[1759138264186,4.06,208.67,208.64,7.6]
[1759138264787,4.3119,208.68,208.64,7.6]
[1759138264989,8.3721,208.67,208.61,7.6]
[1759138265189,9.66374685,208.67,208.61,7.6]
[1759138266386,4.3123,208.66,208.61,7.6]
[1759138266689,4.06,208.65,208.61,7.6]
[1759138266883,4.3123,208.66,208.61,7.6]
[1759138267088,4.06,208.65,208.61,7.6]
[1759138267492,4.3123,208.66,208.61,7.6]
[1759138267690,4.06,208.62,208.58,7.6]
[1759138267994,1.29164685,208.63,208.58,7.6]
[1759138268595,4.06,208.62,208.58,7.6]
[1759138268794,4.06,208.61,208.58,7.6]
[1759138270500,4.06,208.61,208.55,4.3143]
[1759138271202,4.06,208.61,208.56,7.6]
[1759138271503,4.06,208.61,208.56,14.1959879]
[1759138271803,4.06,208.61,208.56,7.6]
[1759138272205,5.35164685,208.61,208.55,7.6]
[1759138272406,1.29164685,208.59,208.55,7.6]
[1759138272606,5.35164685,208.59,208.51,7.6]
[1759138272804,4.12,208.58,208.51,7.6]
[1759138273001,4.12,208.56,208.51,7.6]
[1759138273696,5.41164685,208.57,208.51,7.6]
[1759138274505,9.72574685,208.57,208.51,7.6]
[1759138275200,4.12,208.61,208.54,7.39]
[1759138275705,4.12,208.61,208.54,12.99614685]
[1759138276405,5.41164685,208.61,208.54,7.39]
[1759138277202,4.12,208.58,208.51,7.39]
[1759138278003,4.314,208.57,208.51,7.39]
[1759138279209,4.3144,208.56,208.51,7.39]
[1759138279714,4.12,208.54,208.51,7.39]
[1759138284112,4.12,208.54,208.47,4.316]
[1759138284317,4.12,208.54,208.48,7.59]
[1759138286517,67.1118,208.56,208.4,7.59]
[1759138286722,4.12,208.55,208.42,7.59]
[1759138287720,67.1118,208.56,208.42,7.59]
[1759138287921,4.12,208.55,208.42,7.59]
[1759138288220,4.12,208.54,208.41,7.59]
[1759138288727,4.12,208.54,208.43,2.02373555]
[1759138288927,4.12,208.54,208.47,7.59]
[1759138289318,8.4348,208.54,208.47,11.906]
[1759138293923,67.1142,208.55,208.41,93.81]
[1759138294128,67.1142,208.55,208.42,7.59]
[1759138294721,4.12,208.54,208.42,7.59]
[1759138294925,67.1142,208.55,208.42,7.59]
[1759138295116,4.12,208.54,208.42,7.59]
[1759138295317,4.3151,208.52,208.43,4.3168]
[1759138295522,8.4351,208.52,208.44,7.59]
[1759138296820,8.4351,208.52,208.45,7.59]
[1759138297427,4.3154,208.51,208.45,7.59]
[1759138300425,4.3155,208.5,208.42,4.3171]
[1759138300630,4.3155,208.5,208.43,7.59]
[1759138301633,4.3158,208.49,208.43,7.59]
[1759138302733,4.316,208.48,208.43,7.59]
[1759138302933,4.12,208.48,208.41,7.59]
[1759138304737,4.3162,208.47,208.41,7.59]
[1759138307041,4.3158,208.49,208.41,7.59]
[1759138308342,4.3153,208.51,208.41,7.59]
[1759138309541,4.3153,208.51,208.44,4.3166]
[1759138309740,4.3153,208.51,208.45,7.59]
[1759138311444,4.12,208.52,208.45,7.59]
[1759138312646,8.4352,208.52,208.46,7.59]
[1759138316756,4.3154,208.51,208.46,7.59]
[1759138317055,4.3154,208.51,208.43,4.3168]
[1759138317056,8.4154,208.51,208.44,7.7]
[1759138318153,4.3156,208.5,208.44,7.7]
[1759138319752,4.3156,208.5,208.44,12.0166]
[1759138321252,4.1,208.48,208.42,4.317]
[1759138321458,4.3158,208.49,208.43,7.7]
[1759138322157,4.3158,208.49,208.44,4.3166]
[1759138322357,4.3158,208.49,208.45,7.7]
[1759138322758,4.3158,208.49,208.44,4.3166]
[1759138323152,4.3158,208.49,208.45,7.7]
[1759138323754,4.3158,208.49,208.44,4.3166]
[1759138323958,4.3158,208.49,208.43,7.7]
[1759138324658,4.316,208.48,208.43,7.7]
[1759138326056,4.316,208.48,208.42,4.317]
[1759138326357,4.316,208.48,208.43,7.7]
[1759138326557,4.316,208.48,208.42,4.317]
[1759138326757,4.316,208.48,208.43,7.7]
[1759138326952,4.1,208.46,208.43,7.7]
[1759138328262,4.1,208.46,208.41,8.07549429]
[1759138328761,4.1,208.46,208.42,7.7]
[1759138328964,8.4162,208.47,208.41,12.39269429]
[1759138329256,8.4162,208.47,208.42,7.7]
[1759138330661,4.1,208.46,208.41,12.39269429]
[1759138330854,4.1,208.46,208.42,7.7]
[1759138331058,145.1144,208.55,208.42,7.7]
[1759138331059,67.1144,208.55,208.42,7.7]
[1759138331255,67.0833,208.65,208.49,7.7]
[1759138331556,67.0833,208.65,208.52,7.7]
[1759138331557,3.3483127,208.64,208.52,7.7]
[1759138331757,3.3483127,208.63,208.52,7.7]
[1759138331964,3.3483127,208.62,208.52,7.7]
[1759138332159,4.3134,208.6,208.52,12.0149]
[1759138332760,67.0739,208.68,208.52,12.0149]
[1759138332761,72.43417965,208.71,208.58,7.7]
[1759138333057,3.34369758,208.7,208.61,7.36]
[1759138333262,3.34369758,208.71,208.64,7.36]
[1759138333458,4.3113,208.7,208.64,7.36]
[1759138333766,3.9,208.71,208.64,7.36]
[1759138333958,3.33821317,208.7,208.55,8.07549429]
[1759138334154,3.33821317,208.7,208.6,7.36]
[1759138334360,7.23821317,208.71,208.6,7.36]
[1759138334561,4.3119,208.68,208.6,7.36]
[1759138335761,3.9,208.65,208.56,2.02373555]
[1759138336264,4.3132,208.61,208.54,7.36]
[1759138336654,8.2136,208.59,208.54,7.36]
[1759138336857,3.9,208.58,208.54,7.36]
[1759138337763,8.214,208.58,208.54,7.36]
[1759138339466,3.9,208.57,208.48,7.36]
[1759138339666,3.9,208.57,208.49,7.36]
[1759138340467,8.2142,208.57,208.49,7.36]
[1759138341568,4.3144,208.56,208.49,7.36]
[1759138343571,4.3146,208.55,208.49,7.36]
[1759138344370,5.60974985,208.55,208.49,7.36]
[1759138345868,4.3146,208.55,208.49,7.36]
[1759138347074,9.50914985,208.57,208.49,7.36]
[1759138350070,4.3143,208.56,208.49,7.36]
[1759138351479,9.51974985,208.55,208.49,7.36]
[1759138351775,3.91,208.52,208.49,7.36]
[1759138353482,5.61014985,208.53,208.46,7.59]
[1759138353678,4.315,208.53,208.46,7.59]
[1759138354878,4.315,208.53,208.46,4.3162]
[1759138355083,4.315,208.53,208.47,7.59]
[1759138355384,8.2244,208.55,208.47,8.88514985]
[1759138356584,8.2244,208.55,208.48,4.3157]
[1759138356880,4.3147,208.54,208.48,4.3157]
[1759138357084,4.3147,208.54,208.49,7.59]
[1759138357483,4.3147,208.54,208.48,4.3157]
[1759138357683,9.51944985,208.56,208.48,4.3157]
[1759138357882,9.51944985,208.56,208.49,7.59]
[1759138358284,4.3145,208.55,208.49,7.59]
[1759138360083,4.3139,208.58,208.48,7.59]
[1759138360386,3.91,208.6,208.51,7.59]
[1759138360585,3.91,208.6,208.53,7.59]
[1759138361790,3.91,208.6,208.54,7.59]
[1759138362890,3.91,208.6,208.54,11.9045]
[1759138363187,5.20514985,208.57,208.49,7.59]
[1759138364591,4.3143,208.56,208.49,11.9055]
[1759138374014,4.3145,208.55,208.49,11.9055]
[1759138375108,4.3147,208.54,208.49,7.59]
[1759138375304,3.91,208.53,208.49,7.59]
[1759138375509,3.91,208.53,208.47,7.89]
[1759138376913,5.20514985,208.53,208.47,7.89]
[1759138377103,67.1078,208.57,208.47,7.89]
[1759138377104,1.29514985,208.51,208.47,7.89]
[1759138377304,1.29514985,208.49,208.42,7.89]
[1759138378416,3.91,208.5,208.42,9.18514985]
[1759138379718,3.91,208.5,208.44,4.3165]
[1759138379918,3.91,208.5,208.44,12.2065]
[1759138380425,5.61044985,208.51,208.42,9.37064414]
[1759138380426,8.2249,208.53,208.45,12.2064]
[1759138380619,9.52004985,208.53,208.46,7.89]
[1759138383324,5.20514985,208.53,208.46,4.3162]
[1759138383521,5.20514985,208.53,208.47,7.89]
[1759138385522,3.91,208.5,208.44,4.3166]
[1759138385722,3.91,208.5,208.43,7.89]
[1759138386817,8.2256,208.5,208.44,4.3166]
[1759138387125,1.29514985,208.51,208.43,7.89]
[1759138387324,1.29514985,208.53,208.43,9.18514985]
[1759138387521,4.3152,208.52,208.45,4.3164]
[1759138387827,4.3152,208.52,208.46,7.89]
[1759138391624,8.2253,208.51,208.46,7.89]
[1759138391828,3.91,208.52,208.44,7.89]
[1759138393423,1.29514985,208.51,208.44,7.89]
[1759138393617,3.95,208.48,208.41,7.61]
[1759138393820,1.29514985,208.47,208.41,7.61]
[1759138394627,4.3164,208.46,208.4,7.61]
[1759138395128,8.266,208.48,208.41,11.9272]
[1759138395327,3.95,208.48,208.41,7.61]
[1759138396223,4.3162,208.47,208.42,7.61]
[1759138396521,5.24514985,208.45,208.39,21.86848788]
[1759138396720,8.2668,208.44,208.39,14.25848788]
[1759138396925,4.3168,208.44,208.37,8.07549429]
[1759138397227,4.3168,208.44,208.38,7.61]
[1759138398726,3.95,208.59,208.44,7.61]
[1759138399027,3.95,208.58,208.48,7.61]
[1759138399225,1.29514985,208.56,208.48,7.61]
[1759138399431,1.29514985,208.54,208.48,7.61]
[1759138399736,3.95,208.53,208.45,7.61]
[1759138400434,3.95,208.53,208.47,7.61]
[1759138403834,8.265,208.53,208.47,7.61]
[1759138404328,3.95,208.53,208.47,8.90514985]
[1759138404731,4.3146,208.55,208.47,8.90514985]
[1759138406243,4.3146,208.55,208.47,7.61]
[1759138407132,4.3146,208.55,208.47,4.3159]
[1759138407430,4.3146,208.55,208.48,7.64]
[1759138409036,4.3149,208.53,208.47,4.3159]
[1759138409237,4.3149,208.53,208.48,7.64]
[1759138409733,4.3149,208.53,208.47,4.3159]
[1759138409937,4.3149,208.53,208.48,7.64]
[1759138410139,4.3149,208.53,208.47,4.3159]
[1759138410639,4.3149,208.53,208.48,7.64]
[1759138411136,4.3149,208.53,208.47,4.3159]
[1759138411939,4.3149,208.53,208.48,7.64]
[1759138412639,4.3149,208.53,208.47,4.3159]
[1759138413434,4.3149,208.53,208.48,7.64]
[1759138413637,4.3149,208.53,208.47,4.3159]
[1759138413837,4.3149,208.53,208.48,7.64]
[1759138414037,4.3149,208.53,208.47,4.3159]
[1759138414840,4.3149,208.53,208.48,7.64]
[1759138415639,4.3149,208.53,208.47,4.3159]
[1759138415836,4.3149,208.53,208.48,7.64]
[1759138416441,4.3149,208.53,208.47,4.3159]
[1759138416640,3.91,208.51,208.48,7.64]
[1759138416836,67.1175,208.54,208.46,7.64]
[1759138417238,3.91,208.53,208.46,7.64]
[1759138417743,4.3156,208.5,208.44,4.3166]
[1759138418140,3.91,208.52,208.45,7.64]
[1759138419645,8.2251,208.52,208.45,11.9564]
[1759138425250,8.2251,208.52,208.46,4.3162]
[1759138425647,4.3147,208.54,208.45,2.02353554]
[1759138425849,4.3147,208.54,208.46,7.64]
[1759138426645,4.3147,208.54,208.48,4.3158]
[1759138426851,4.3147,208.54,208.49,7.64]
[1759138427047,4.3147,208.54,208.49,4.3156]
[1759138427253,3.91,208.55,208.5,7.64]
[1759138427552,3.91,208.55,208.46,7.64]
[1759138427747,3.91,208.55,208.48,4.3158]
[1759138427953,3.91,208.55,208.49,7.64]
[1759138429059,29.62,208.58,208.46,11.9562]
[1759138429359,3.91,208.57,208.46,11.9562]
[1759138429554,4.3152,208.52,208.46,11.9562]
[1759138433463,4.3152,208.52,208.43,8.07549429]
[1759138433464,4.3154,208.51,208.44,4.3166]
[1759138433665,4.3154,208.51,208.45,7.64]
[1759138434564,4.3154,208.51,208.45,11.9564]
[1759138434965,8.2249,208.53,208.46,7.59]
[1759138436065,8.2249,208.53,208.46,11.9062]
[1759138437555,3.91,208.53,208.47,4.316]
[1759138437759,4.3145,208.55,208.48,7.59]
[1759138437962,8.2245,208.55,208.48,7.59]
[1759138441067,3.91,208.54,208.48,7.59]
[1759138442268,3.91,208.52,208.48,7.59]
[1759138442665,3.91,208.52,208.47,4.316]
[1759138442860,4.3148,208.53,208.48,7.59]
[1759138443062,3.91,208.51,208.46,7.59]
[1759138443466,4.3151,208.52,208.46,7.59]
[1759138443767,3.91,208.51,208.46,7.59]
[1759138443969,4.3151,208.52,208.46,7.59]
[1759138444572,3.91,208.51,208.46,7.59]
[1759138444769,4.3151,208.52,208.46,7.59]
[1759138445969,8.2251,208.52,208.46,7.59]
[1759138447372,4.3154,208.51,208.46,7.59]
[1759138447578,69.13473554,208.56,208.46,7.59]
[1759138447579,3.91,208.49,208.46,7.59]
[1759138454986,4.3151,208.52,208.44,7.51]
[1759138455183,3.92,208.56,208.44,15.58549429]
[1759138455380,3.92,208.56,208.46,7.51]
[1759138456786,3.92,208.56,208.45,8.07549429]
[1759138456787,4.3147,208.54,208.48,4.3158]
[1759138456987,4.3147,208.54,208.49,7.51]
[1759138457288,4.3147,208.54,208.48,4.3158]
[1759138457485,4.3147,208.54,208.49,7.51]
[1759138457687,8.2347,208.54,208.49,7.51]
[1759138457988,8.2347,208.54,208.48,4.3158]
[1759138459088,8.2347,208.54,208.49,7.51]
[1759138459290,8.2347,208.54,208.48,4.3158]
[1759138459792,8.2347,208.54,208.49,7.51]
[1759138460088,8.2347,208.54,208.48,4.3158]
[1759138460291,8.2347,208.54,208.46,4.3162]
[1759138460587,8.2347,208.54,208.47,7.51]
[1759138461892,4.3149,208.53,208.47,7.51]
[1759138464990,4.3151,208.52,208.47,7.51]
[1759138465196,4.3151,208.52,208.47,7.46]
[1759138465586,4.3151,208.52,208.46,4.3162]
[1759138465788,4.3151,208.52,208.47,7.46]
[1759138466282,4.3151,208.52,208.46,4.3162]
[1759138466485,4.3151,208.52,208.47,7.46]
[1759138466687,4.3151,208.52,208.46,4.3162]
[1759138467201,4.3151,208.52,208.47,7.46]
[1759138468289,3.9,208.5,208.47,7.46]
[1759138468490,4.3154,208.51,208.47,7.46]
[1759138468691,3.9,208.5,208.47,7.46]
[1759138468883,4.3156,208.5,208.44,13.68745721]
[1759138469092,4.3156,208.5,208.44,13.07196292]
[1759138469093,8.2156,208.5,208.44,13.07196292]
[1759138472094,8.2156,208.5,208.44,5.61196292]
[1759138472596,8.2156,208.5,208.45,7.46]
[1759138472792,8.2156,208.5,208.44,5.61196292]
[1759138472990,8.2156,208.5,208.45,7.46]
[1759138473191,8.2156,208.5,208.44,5.61196292]
[1759138474390,8.2156,208.5,208.44,13.07196292]
[1759138475399,5.19536292,208.58,208.49,7.46]
[1759138475701,7.27109471,208.57,208.49,7.46]
[1759138475902,3.9,208.57,208.49,7.46]
[1759138476698,4.3145,208.55,208.49,7.46]
[1759138477302,8.2141,208.57,208.5,7.46]
[1759138477500,3.9,208.57,208.5,7.46]
[1759138478705,4.3144,208.56,208.5,7.46]
[1759138480100,4.3145,208.55,208.49,7.46]
[1759138480305,1.29536292,208.56,208.49,7.46]
[1759138480707,3.9,208.55,208.47,7.46]
[1759138481708,3.9,208.58,208.49,7.46]
[1759138481902,3.36958498,208.57,208.49,7.46]
[1759138482107,5.19536292,208.58,208.49,7.46]
[1759138482308,8.2143,208.56,208.49,11.7755]
[1759138482703,3.9,208.56,208.49,11.7755]
[1759138483604,4.3145,208.55,208.49,11.7755]
[1759138484410,4.3145,208.55,208.49,4.3155]
[1759138484707,4.3145,208.55,208.5,7.46]
[1759138485215,4.3145,208.55,208.49,4.3155]
[1759138485914,4.3145,208.55,208.5,7.46]
[1759138486414,8.2145,208.55,208.49,4.3155]
[1759138486610,8.2145,208.55,208.5,7.46]
[1759138486814,8.2145,208.55,208.49,4.3155]
[1759138487014,8.2145,208.55,208.5,7.46]
[1759138487212,8.2145,208.55,208.49,4.3155]
[1759138487413,4.3145,208.55,208.49,4.3155]
[1759138487817,8.2145,208.55,208.5,7.46]
[1759138488017,8.2145,208.55,208.49,4.3155]
[1759138488317,8.2145,208.55,208.5,7.46]
[1759138488511,8.2145,208.55,208.49,4.3155]
[1759138488718,8.2145,208.55,208.5,7.46]
[1759138488917,4.3145,208.55,208.49,4.3155]
[1759138489616,4.3145,208.55,208.49,7.46]
[1759138490112,4.3145,208.55,208.48,1.29536292]
[1759138490113,1.29536292,208.57,208.48,8.75536292]
[1759138490318,3.9,208.56,208.48,7.46]
[1759138490715,4.3149,208.53,208.48,7.46]
[1759138491317,4.3149,208.53,208.47,5.61136292]
[1759138491518,8.2149,208.53,208.47,5.61136292]
[1759138491720,8.2149,208.53,208.48,7.46]
[1759138492019,8.2149,208.53,208.47,5.61136292]
[1759138492219,8.2149,208.53,208.48,7.46]
[1759138492722,8.2149,208.53,208.47,5.61136292]
[1759138493123,8.2149,208.53,208.48,7.46]
[1759138493622,8.2149,208.53,208.47,5.61136292]
[1759138494421,8.2149,208.53,208.48,7.28]
[1759138494617,4.3149,208.53,208.48,7.28]
[1759138494924,8.2349,208.53,208.47,5.61136292]
[1759138495312,8.2349,208.53,208.48,7.28]
[1759138496018,3.92,208.53,208.48,7.28]
[1759138496214,3.92,208.53,208.47,5.61136292]
[1759138496418,3.92,208.53,208.48,7.28]
[1759138496619,3.92,208.53,208.47,5.61136292]
[1759138497219,3.92,208.53,208.48,7.28]
[1759138497418,3.92,208.53,208.47,5.61136292]
[1759138497822,3.92,208.53,208.48,7.28]
[1759138498721,3.92,208.53,208.47,5.61136292]
[1759138499714,3.92,208.53,208.48,7.28]
[1759138500116,3.92,208.53,208.47,5.61136292]
[1759138500315,3.92,208.53,208.48,7.28]
[1759138500523,3.92,208.53,208.47,5.61136292]
[1759138500817,3.92,208.53,208.48,7.28]
[1759138501423,3.92,208.53,208.47,5.61136292]
[1759138501725,3.92,208.53,208.48,7.28]
[1759138502724,3.92,208.53,208.47,5.61136292]
[1759138502918,3.92,208.53,208.48,7.28]
[1759138503124,8.2347,208.54,208.48,8.57536292]
[1759138507334,67.0983,208.6,208.46,8.07549429]
[1759138507335,3.92,208.52,208.46,8.07549429]
[1759138507633,1.29536292,208.51,208.43,8.07549429]
[1759138507830,3.92,208.5,208.43,8.07549429]
[1759138508132,3.92,208.5,208.44,16.65085721]
[1759138508325,5.21536292,208.54,208.46,1.29536292]
[1759138508526,5.21536292,208.54,208.47,7.28]
[1759138508935,4.3149,208.53,208.47,7.28]
[1759138509436,4.3153,208.51,208.47,7.28]
[1759138509626,3.92,208.5,208.47,7.28]
[1759138511336,3.92,208.5,208.46,1.29536292]
[1759138511537,3.92,208.5,208.47,7.28]
[1759138511836,3.92,208.5,208.46,1.29536292]
[1759138512138,3.92,208.5,208.46,7.28]
[1759138512331,3.92,208.5,208.45,1.29536292]
[1759138512932,1.29536292,208.52,208.45,7.35]
[1759138513533,3.91,208.51,208.45,7.35]
[1759138514035,1.29536292,208.52,208.45,7.35]
[1759138514232,3.91,208.51,208.45,7.35]
[1759138514634,3.91,208.48,208.45,7.35]
[1759138514835,3.91,208.48,208.43,1.29536292]
[1759138515235,3.91,208.48,208.44,7.35]
[1759138515532,3.91,208.48,208.43,1.29536292]
[1759138515738,3.91,208.48,208.44,7.35]
[1759138515938,3.91,208.48,208.43,1.29536292]
[1759138516432,3.91,208.48,208.44,7.35]
[1759138517231,4.3158,208.49,208.44,7.35]
[1759138517433,3.91,208.48,208.43,1.29536292]
[1759138517633,3.91,208.48,208.44,7.35]
[1759138518236,68.41986292,208.52,208.44,7.35]
[1759138518436,3.91,208.47,208.4,7.35]
[1759138519539,4.3164,208.46,208.4,7.35]
[1759138519741,3.91,208.47,208.4,7.35]
[1759138520536,4.3166,208.45,208.4,7.35]
[1759138520743,8.2266,208.45,208.39,110.81466753]
[1759138520944,4.3166,208.45,208.39,109.51930461]
[1759138521139,3.91,208.43,208.4,7.35]
[1759138521339,5.20536292,208.46,208.4,7.35]
[1759138522841,1.29536292,208.46,208.4,7.35]
[1759138523243,8.227,208.43,208.37,7.35]
[1759138524946,8.227,208.43,208.37,21.44235954]
[1759138525146,4.3172,208.42,208.37,14.09235954]
[1759138525346,3.92,208.41,208.33,7.54]
[1759138526636,4.3177,208.4,208.33,7.54]
[1759138526847,3.92,208.41,208.33,7.54]
[1759138527138,3.92,208.41,208.35,7.54]
[1759138531747,8.2367,208.44,208.35,7.54]
[1759138532543,8.2367,208.44,208.36,4.3182]
[1759138533040,8.2367,208.44,208.37,7.54]
[1759138537655,3.92,208.44,208.37,7.54]
[1759138537854,75.7443,208.55,208.38,2.02616781]
[1759138537855,3.92,208.48,208.38,2.02616781]
[1759138538154,3.92,208.48,208.39,7.54]
[1759138539052,3.92,208.46,208.39,7.54]
[1759138539246,24.60616781,208.53,208.39,7.54]
[1759138539247,67.135,208.49,208.39,7.54]
[1759138539550,3.92,208.47,208.39,7.54]
[1759138539949,67.1372,208.48,208.39,7.54]
[1759138540457,3.92,208.47,208.39,7.54]
[1759138540650,8.237,208.43,208.39,7.54]
[1759138540954,8.237,208.43,208.35,18.2]
[1759138541154,8.237,208.43,208.36,7.54]
[1759138541657,4.3166,208.45,208.36,7.54]
[1759138542155,4.3166,208.45,208.4,7.54]
[1759138542552,4.3166,208.45,208.39,4.3176]
[1759138542750,4.3166,208.45,208.4,7.54]
[1759138542950,4.3166,208.45,208.39,4.3176]
[1759138543145,4.3166,208.45,208.4,7.54]
[1759138543352,4.3166,208.45,208.39,4.3176]
[1759138544344,4.3166,208.45,208.4,7.54]
[1759138544750,4.3166,208.45,208.39,4.3176]
[1759138545553,4.3166,208.45,208.4,7.54]
[1759138545954,8.2366,208.45,208.39,4.3176]
[1759138546155,8.2366,208.45,208.4,7.54]
[1759138546456,8.2366,208.45,208.39,4.3176]
[1759138547157,8.2366,208.45,208.4,7.54]
[1759138547353,8.2366,208.45,208.39,11.8576]
[1759138547957,4.3168,208.44,208.38,7.54]
[1759138553762,4.317,208.43,208.37,4.318]
[1759138554068,4.317,208.43,208.34,84.00862704]
[1759138554069,3.92,208.43,208.34,22.44862704]
[1759138554762,69.17536781,208.44,208.34,22.44862704]
[1759138555155,3.92,208.43,208.34,22.44862704]
[1759138555565,4.3176,208.4,208.34,22.44862704]
[1759138556874,4.3178,208.39,208.34,7.98]
[1759138557170,3.92,208.38,208.34,7.98]
[1759138557872,8.238,208.38,208.32,7.98]
[1759138559164,3.92,208.36,208.31,15.01921578]
[1759138559371,3.92,208.39,208.28,7.98]
[1759138559765,67.1624,208.4,208.28,7.98]
[1759138559966,4.3189,208.34,208.28,7.98]
[1759138561266,3.92,208.35,208.28,7.98]
[1759138561674,8.2384,208.36,208.28,7.98]
[1759138562477,8.2384,208.36,208.28,22.14609649]
[1759138562673,4.3187,208.35,208.28,22.14609649]
[1759138564676,4.3187,208.35,208.28,26.46599649]
[1759138570278,3.92,208.34,208.28,26.46599649]
[1759138571178,3.92,208.34,208.28,7.98]
[1759138571982,4.3193,208.32,208.28,7.98]
[1759138572280,4.3193,208.32,208.26,7.98]
[1759138574179,8.2495,208.31,208.26,7.34]
[1759138574374,8.2495,208.31,208.25,4.3205]
[1759138574882,8.2495,208.31,208.26,7.34]
[1759138575375,8.2495,208.31,208.25,18.85443382]